fUST/lending_fUST_20240602
["ID","MTS","AMOUNT","RATE_DAILY","PERIOD"]
[328374698,1717278643018,-1227.37989773,0.00021867,2]
[328374699,1717278643028,-1498.63618319,0.00021867,2]
[328374700,1717278643038,-10469.45949762,0.00021867,2]
[328374701,1717278643048,-605.16734107,0.00021867,2]
[328374702,1717278643057,-10524.46149726,0.00021867,2]
[328374703,1717278643067,-317.90536284,0.00021867,2]
[328374704,1717278643076,-770.97458691,0.00021867,2]
[328374705,1717278643086,-124189.83566769,0.00021867,2]
[328374706,1717278643095,-552.28063581,0.00021867,2]
[328374707,1717278643104,-261.01111012,0.00021867,2]
[328374708,1717278643115,-172.77051557,0.00021867,2]
[328374709,1717278643124,-1782.90454913,0.00021867,2]
[328374710,1717278643259,-314.12529871,0.00021867,2]
[328374711,1717278643268,-3986.07672672,0.00021867,2]
[328374712,1717278643277,-224.86265423,0.00021867,2]
[328374713,1717278643287,-151.0,0.00021867,2]
[328374714,1717278643295,-151.0,0.00021867,2]
[328374715,1717278643304,-151.0,0.00021867,2]
[328374716,1717278643313,-151.0,0.00021867,2]
[328374717,1717278643322,-151.0,0.00021867,2]
[328374718,1717278643332,-151.0,0.00021867,2]
[328374719,1717278643340,-151.0,0.00021867,2]
[328374720,1717278643349,-151.0,0.00021867,2]
[328374721,1717278643358,-151.0,0.00021867,2]
[328374722,1717278643367,-151.0,0.00021867,2]
[328374723,1717278643377,-151.0,0.00021867,2]
[328374724,1717278643386,-151.0,0.00021867,2]
[328374725,1717278643395,-203.439916,0.00021867,2]
[328374726,1717278643404,-2638.45567811,0.00021868,2]
[328374727,1717278643413,-158.60514824,0.00021868,2]
[328374728,1717278643423,-164.6469817,0.00021868,2]
[328374729,1717278643432,-5580.35487342,0.00021868,2]
[328374735,1717278646294,-345.00673985,0.00021868,2]
[328374748,1717278784393,691.54705652,9.999e-05,2]
[328374802,1717279832022,-1413.6153856,0.000189,2]
[328374804,1717279832031,-776.25769141,0.0002,2]
[328374808,1717279832053,-115.65015849,0.0002,2]
[328374809,1717279832063,-217.417724,0.0002085,2]
[328374811,1717279832073,-620.02203851,0.00021691,2]
[328374813,1717279832083,-757.84601489,0.00021768,2]
[328374815,1717279832092,-892.54,0.00021858,3]
[328374816,1717279832102,-397.08723811,0.00021858,2]
[328374837,1717279838008,-150.40103706,0.00021858,2]
[328374838,1717279838018,-162.73114395,0.00021866,2]
[328374839,1717279838029,-807.66262701,0.00021866,2]
[328374840,1717279838039,-281.96258992,0.00021866,2]
[328374841,1717279838048,-155.06454195,0.00021866,2]
[328374842,1717279838057,-1044.85540851,0.00021866,2]
[328374843,1717279838067,-395.93797075,0.00021866,2]
[328374844,1717279838077,-514.60107583,0.00021866,2]
[328374845,1717279838086,-693.63502667,0.00021866,2]
[328374846,1717279838095,-308.97429695,0.00021866,2]
[328374847,1717279838107,-42.8434873,0.00021866,2]
[328374848,1717279838117,-896.7201831,0.00021867,2]
[328374849,1717279838126,-587.59554522,0.00021867,2]
[328374850,1717279838135,-500.0,0.00021867,2]
[328374851,1717279838145,-500.0,0.00021867,2]
[328374852,1717279838155,-500.0,0.00021867,2]
[328374853,1717279838164,-500.0,0.00021867,2]
[328374854,1717279838173,-491.07211769,0.00021867,2]
[328374855,1717279838182,-500.0,0.00021867,2]
[328374856,1717279838192,-230.25949522,0.00021867,2]
[328374857,1717279838202,-347.6553453,0.00021867,2]
[328374858,1717279838211,-575.69678909,0.00021867,2]
[328374859,1717279838221,-196.56492294,0.00021867,2]
[328374860,1717279838230,-500.0,0.00021867,2]
[328374861,1717279838239,-500.0,0.00021867,2]
[328374862,1717279838249,-500.0,0.00021867,2]
[328374863,1717279838258,-500.0,0.00021867,2]
[328374864,1717279838267,-500.0,0.00021867,2]
[328374865,1717279838281,-500.0,0.00021867,2]
[328374866,1717279838290,-500.0,0.00021867,2]
[328374867,1717279838299,-500.0,0.00021867,2]
[328374868,1717279838309,-452.66273541,0.00021867,2]
[328374869,1717279838318,-500.0,0.00021867,2]
[328374870,1717279838327,-500.0,0.00021867,2]
[328374871,1717279838336,-500.0,0.00021867,2]
[328374872,1717279838345,-500.0,0.00021867,2]
[328374873,1717279838354,-500.0,0.00021867,2]
[328374874,1717279838365,-500.0,0.00021867,2]
[328374875,1717279838374,-500.0,0.00021867,2]
[328374876,1717279838383,-500.0,0.00021867,2]
[328374877,1717279838392,-500.0,0.00021867,2]
[328374878,1717279838402,-500.0,0.00021867,2]
[328374879,1717279838411,-500.0,0.00021867,2]
[328374880,1717279838420,-499.99999999,0.00021867,2]
[328374881,1717279838430,-500.0,0.00021867,2]
[328374882,1717279838439,-500.0,0.00021867,2]
[328374883,1717279838452,-600.0,0.00021867,2]
[328374884,1717279838461,-1980.06289202,0.00021868,2]
[328374885,1717279838470,-231.24060433,0.00021868,2]
[328374886,1717279838479,-290.46489359,0.00021868,2]
[328374887,1717279838489,-280.65986406,0.00021868,2]
[328374888,1717279838498,-12833.99088915,0.00021868,2]
[328374889,1717279838507,-2201.84507355,0.00021868,2]
[328374890,1717279838516,-18672.92828875,0.00021868,2]
[328374891,1717279838533,-1248.66800188,0.00021868,2]
[328374908,1717279841390,-2984.65669201,0.00021868,2]
[328374909,1717279841454,-302.8671087,0.00021868,2]
[328374918,1717279846521,-1901.01398624,0.00021868,2]
[328374930,1717280936135,351.92823369,9.999e-05,2]
[328374970,1717281039397,-942.41025707,0.000189,2]
[328374971,1717281039408,-167.60519,0.00020303,2]
[328374972,1717281039418,-4747.38958021,0.000204,2]
[328374997,1717281042131,-20132.61041979,0.000204,2]
[328374998,1717281042140,-1710.7666823,0.00020419,2]
[328374999,1717281042149,-274.250566,0.000205,2]
[328375000,1717281042158,-169.245469,0.00020603,2]
[328375001,1717281042167,-4230.52943513,0.00021371,2]
[328375002,1717281042176,-663.11526302,0.00021766,2]
[328375003,1717281042186,-2110.18642515,0.00021844,2]
[328375004,1717281042195,-10524.46149726,0.00021866,2]
[328375005,1717281042204,-351.70733481,0.00021866,2]
[328375006,1717281042214,-3066.73023231,0.00021867,2]
[328375007,1717281042224,-404.29660359,0.00021867,2]
[328375008,1717281042235,-312.9683551,0.00021867,2]
[328375009,1717281042245,-500.0,0.00021867,2]
[328375010,1717281042254,-461.01290961,0.00021867,2]
[328375011,1717281042263,-298.52782412,0.00021867,2]
[328375012,1717281042272,-251.82666224,0.00021867,2]
[328375013,1717281042281,-435.56024846,0.00021867,2]
[328375014,1717281042293,-64.43975154,0.00021867,2]
[328375015,1717281042303,-500.0,0.00021867,2]
[328375016,1717281042312,-515.79882063,0.00021867,2]
[328375017,1717281042321,-500.0,0.00021867,2]
[328375018,1717281042331,-500.0,0.00021867,2]
[328375019,1717281042340,-500.0,0.00021867,2]
[328375020,1717281042350,-500.0,0.00021867,2]
[328375021,1717281042360,-220.07291601,0.00021868,7]
[328375022,1717281042370,-1721.83938478,0.00021868,2]
[328375023,1717281042382,-16181.68226387,0.00021868,2]
[328375024,1717281042394,-1178.78100576,0.00021868,2]
[328375025,1717281042405,-55402.14466901,0.00021868,2]
[328375032,1717281043530,-10006.85531563,0.00021868,2]
[328375051,1717281073441,328.26786708,0.00015,2]
[328375053,1717281108439,191.29838226,9.999e-05,2]
[328375054,1717281108465,3.53425663,9.999e-05,2]
[328375055,1717281116153,5000.0,0.00027,30]
[328375059,1717281757495,1258.16465698,9.999e-05,2]
[328375063,1717282042866,351.92823369,9.999e-05,2]
[328375064,1717282114066,1443.05689823,9.999e-05,2]
[328375092,1717282232659,-364.55781189,0.000164,2]
[328375093,1717282232669,-260.04165873,0.000184,3]
[328375094,1717282232679,-85.79311138,0.00018498,2]
[328375095,1717282232691,-9490.66826235,0.00018498,2]
[328375096,1717282232700,-7067.15955717,0.00018499,2]
[328375097,1717282232710,-605.71471324,0.00018899,2]
[328375098,1717282232719,-1096.1274927,0.000189,2]
[328375099,1717282232729,-169.245469,0.00020255,2]
[328375100,1717282232738,-307.764226,0.00020484,2]
[328375101,1717282232747,-177.701409,0.00020557,2]
[328375102,1717282232757,-4230.52943513,0.00021582,2]
[328375103,1717282232767,-620.00110192,0.00021637,2]
[328375104,1717282232776,-250.41011471,0.00021649,2]
[328375105,1717282232786,-341.31243572,0.00021766,2]
[328375106,1717282232795,-580.22585516,0.00021766,2]
[328375107,1717282232805,-341.31243568,0.00021775,2]
[328375108,1717282232814,-341.31243568,0.00021783,2]
[328375109,1717282232826,-341.31243568,0.00021792,2]
[328375110,1717282232835,-2850.0,0.000218,2]
[328375111,1717282232844,-341.31243568,0.000218,2]
[328375112,1717282232853,-1343.69169054,0.00021846,2]
[328375113,1717282232863,-44308.01128458,0.00021866,2]
[328375114,1717282232872,-195.10308573,0.00021866,2]
[328375115,1717282232881,-154.98450155,0.00021866,2]
[328375116,1717282232891,-209.1310101,0.00021867,2]
[328375117,1717282232900,-354.32162428,0.00021868,2]
[328375118,1717282232910,-897.05291791,0.00021868,2]
[328375119,1717282232919,-10469.45949762,0.00021868,2]
[328375120,1717282232929,-275.07948327,0.00021868,2]
[328375121,1717282232938,-2709.30401177,0.00021868,2]
[328375122,1717282232948,-156.6263305,0.00021868,2]
[328375123,1717282232957,-162.78996957,0.00021868,2]
[328375124,1717282232967,-455.92409776,0.00021868,2]
[328375125,1717282232976,-303.21019419,0.00021868,2]
[328375126,1717282233068,-283.50047803,0.00021868,2]
[328375127,1717282233079,-690.3758186,0.00021868,2]
[328375128,1717282233088,-251.7553016,0.00021868,2]
[328375129,1717282233098,-155.45026948,0.00021868,2]
[328375130,1717282233107,-830.70860497,0.00021868,2]
[328375131,1717282233116,-1202.94912304,0.00021868,2]
[328375132,1717282233127,-836.37406668,0.00021868,2]
[328375133,1717282233137,-2878.49149019,0.00021868,2]
[328375134,1717282233147,-155.34366416,0.00021868,2]
[328375135,1717282233156,-154.98450155,0.00021868,2]
[328375136,1717282233166,-12046.6473426,0.00021868,2]
[328375143,1717282238637,-10077.85204471,0.00021868,2]
[328375144,1717282238647,-319.59188939,0.00021868,2]
[328375145,1717282238657,-117.30244813,0.00021868,4]
[328375146,1717282238668,-192.01809882,0.00021868,4]
[328375147,1717282238678,-679.08390118,0.00021868,2]
[328375148,1717282238689,-1725.12884881,0.00021868,2]
[328375149,1717282238699,-351.34542761,0.00021868,2]
[328375150,1717282238708,-401.16562155,0.00021869,2]
[328375151,1717282238718,-500.0,0.00021869,2]
[328375152,1717282238727,-500.0,0.00021869,2]
[328375153,1717282238737,-396.5642368,0.00021869,2]
[328375154,1717282238746,-226.05752525,0.00021869,2]
[328375155,1717282238756,-500.0,0.00021869,2]
[328375156,1717282238766,-500.0,0.00021869,2]
[328375157,1717282238775,-329.73819371,0.00021869,2]
[328375158,1717282238785,-547.92079498,0.00021869,2]
[328375159,1717282238794,-423.9190847,0.00021869,2]
[328375160,1717282238803,-500.0,0.00021869,2]
[328375161,1717282238813,-500.0,0.00021869,2]
[328375162,1717282238823,-231.71901998,0.00021869,2]
[328375163,1717282238833,-480.377424,0.00021869,2]
[328375164,1717282238845,-19.622576,0.00021869,2]
[328375165,1717282238855,-500.0,0.00021869,2]
[328375166,1717282238865,-243.85550437,0.00021869,2]
[328375167,1717282238874,-2305.52365897,0.0002187,7]
[328375168,1717282238883,-220.07291599,0.0002187,7]
[328375169,1717282238893,-173985.00218159,0.0002187,3]
[328375170,1717282238902,-2004.05465558,0.000219,2]
[328375171,1717282238911,-282.0,0.000219,2]
[328375172,1717282238921,-247.40000882,0.00021913,2]
[328375173,1717282238931,-178.99439023,0.00021913,2]
[328375174,1717282238940,-155.76634242,0.00021915,2]
[328375175,1717282238950,-164.46513612,0.00021915,2]
[328375176,1717282238959,-601.64,0.00021917,2]
[328375177,1717282238969,-507.79846714,0.00021917,2]
[328375178,1717282238979,-173.30518718,0.00021917,2]
[328375179,1717282238988,-540.22259105,0.00021917,2]
[328375180,1717282238998,-500.0,0.00021917,2]
[328375181,1717282239007,-500.0,0.00021917,2]
[328375182,1717282239017,-500.0,0.00021917,2]
[328375183,1717282239028,-500.0,0.00021917,2]
[328375184,1717282239038,-500.0,0.00021917,2]
[328375185,1717282239048,-500.0,0.00021917,2]
[328375186,1717282239058,-500.0,0.00021917,2]
[328375187,1717282239068,-526.37045829,0.00021917,2]
[328375188,1717282239078,-500.0,0.00021917,2]
[328375189,1717282239088,-500.0,0.00021917,2]
[328375190,1717282239098,-500.0,0.00021917,2]
[328375191,1717282239107,-500.0,0.00021917,2]
[328375192,1717282239118,-500.0,0.00021917,2]
[328375193,1717282239127,-500.0,0.00021917,2]
[328375194,1717282239137,-504.23,0.00021917,2]
[328375195,1717282239146,-500.0,0.00021917,2]
[328375196,1717282239156,-500.0,0.00021917,2]
[328375197,1717282239166,-703.67,0.00021917,2]
[328375198,1717282239176,-616.92,0.00021917,2]
[328375199,1717282239185,-517.46297043,0.00021917,2]
[328375200,1717282239195,-500.0,0.00021917,2]
[328375201,1717282239205,-500.0,0.00021917,2]
[328375202,1717282239214,-611.23,0.00021917,2]
[328375203,1717282239224,-500.0,0.00021917,2]
[328375204,1717282239234,-929.26,0.00021917,2]
[328375205,1717282239244,-614.21,0.00021917,2]
[328375206,1717282239254,-577.26,0.00021917,2]
[328375207,1717282239264,-500.0,0.00021917,2]
[328375208,1717282239273,-500.0,0.00021917,2]
[328375209,1717282239284,-500.0,0.00021917,2]
[328375210,1717282239294,-500.0,0.00021917,2]
[328375211,1717282239304,-500.0,0.00021917,2]
[328375212,1717282239313,-500.0,0.00021917,2]
[328375213,1717282239323,-525.61578356,0.00021917,2]
[328375214,1717282239332,-500.0,0.00021917,2]
[328375215,1717282239342,-500.0,0.00021917,2]
[328375216,1717282239352,-500.0,0.00021917,2]
[328375217,1717282239362,-531.78159609,0.00021917,2]
[328375218,1717282239371,-500.0,0.00021917,2]
[328375219,1717282239386,-500.0,0.00021917,2]
[328375220,1717282239396,-502.21,0.00021917,2]
[328375221,1717282239405,-500.0,0.00021917,2]
[328375222,1717282239415,-555.17,0.00021917,2]
[328375223,1717282239424,-1108.22,0.00021917,2]
[328375224,1717282239434,-465.47897987,0.00021917,2]
[328375225,1717282239444,-500.0,0.00021917,2]
[328375226,1717282239537,-897.06,0.00021917,2]
[328375227,1717282239548,-262.07655486,0.00021917,2]
[328375228,1717282239557,-500.0,0.00021917,2]
[328375229,1717282239567,-597.38,0.00021917,2]
[328375230,1717282239576,-500.0,0.00021917,2]
[328375231,1717282239586,-500.0,0.00021917,2]
[328375232,1717282239595,-500.0,0.00021917,2]
[328375233,1717282239604,-500.0,0.00021917,2]
[328375234,1717282239613,-500.0,0.00021917,2]
[328375235,1717282239622,-500.0,0.00021917,2]
[328375236,1717282239632,-500.0,0.00021917,2]
[328375237,1717282239641,-500.0,0.00021917,2]
[328375238,1717282239651,-500.0,0.00021917,2]
[328375239,1717282239660,-500.0,0.00021917,2]
[328375240,1717282239670,-500.0,0.00021917,2]
[328375241,1717282239679,-500.0,0.00021917,2]
[328375242,1717282239688,-500.0,0.00021917,2]
[328375243,1717282239698,-500.0,0.00021917,2]
[328375244,1717282239708,-514.74036004,0.00021917,2]
[328375245,1717282239717,-130.25945657,0.00021917,2]
[328375258,1717282242271,-369.74054343,0.00021917,2]
[328375259,1717282242280,-25.94572899,0.00021917,2]
[328375260,1717282242298,-902.34427101,0.00021917,2]
[328375261,1717282242318,-500.0,0.00021917,2]
[328375262,1717282242335,-35.92554476,0.00021917,2]
[328375263,1717282242360,-464.07445524,0.00021917,2]
[328375264,1717282242381,-500.0,0.00021917,2]
[328375265,1717282242400,-500.0,0.00021917,2]
[328375266,1717282242419,-652.47,0.00021917,2]
[328375267,1717282242434,-701.53,0.00021917,2]
[328375268,1717282242452,-488.2720172,0.00021917,2]
[328375269,1717282242472,-3000.0,0.00021917,2]
[328375270,1717282242492,-3000.0,0.00021917,2]
[328375271,1717282242504,-3000.0,0.00021917,2]
[328375272,1717282242523,-3000.0,0.00021917,2]
[328375273,1717282242537,-3000.0,0.00021917,2]
[328375274,1717282242554,-3000.0,0.00021917,2]
[328375275,1717282242567,-3000.0,0.00021917,2]
[328375276,1717282242583,-3000.0,0.00021917,2]
[328375277,1717282242597,-3000.0,0.00021917,2]
[328375278,1717282242612,-3000.0,0.00021917,2]
[328375279,1717282242626,-716.32981892,0.00021917,2]
[328375280,1717282242640,-500.0,0.00021917,2]
[328375281,1717282242655,-500.0,0.00021917,2]
[328375282,1717282242670,-500.0,0.00021917,2]
[328375283,1717282242685,-500.0,0.00021917,2]
[328375284,1717282242700,-500.0,0.00021917,2]
[328375285,1717282242715,-500.0,0.00021917,2]
[328375286,1717282242729,-500.0,0.00021917,2]
[328375287,1717282242743,-500.0,0.00021917,2]
[328375288,1717282242758,-500.0,0.00021917,2]
[328375289,1717282242773,-500.0,0.00021917,2]
[328375290,1717282242788,-500.0,0.00021917,2]
[328375291,1717282242803,-422.40307042,0.00021917,2]
[328375292,1717282242817,-1000.0,0.00021917,2]
[328375293,1717282242835,-500.0,0.00021917,2]
[328375294,1717282242849,-500.0,0.00021917,2]
[328375295,1717282242864,-622.61,0.00021917,2]
[328375296,1717282242878,-500.0,0.00021917,2]
[328375297,1717282242892,-500.0,0.00021917,2]
[328375298,1717282242907,-500.0,0.00021917,2]
[328375299,1717282242922,-1307.61,0.00021917,2]
[328375300,1717282242936,-500.0,0.00021917,2]
[328375301,1717282242951,-912.75,0.00021917,2]
[328375302,1717282242965,-500.0,0.00021917,2]
[328375303,1717282242979,-500.0,0.00021917,2]
[328375304,1717282242994,-627.09,0.00021917,2]
[328375305,1717282243007,-500.0,0.00021917,2]
[328375306,1717282243023,-647.9,0.00021917,2]
[328375307,1717282243036,-500.0,0.00021917,2]
[328375308,1717282243046,-500.0,0.00021917,2]
[328375309,1717282243056,-1340.79,0.00021917,2]
[328375310,1717282243065,-564.34,0.00021917,2]
[328375311,1717282243075,-500.0,0.00021917,2]
[328375312,1717282243084,-500.0,0.00021917,2]
[328375314,1717282243244,-500.0,0.00021917,2]
[328375316,1717282243261,-500.0,0.00021917,2]
[328375317,1717282243270,-500.0,0.00021917,2]
[328375318,1717282243279,-500.0,0.00021917,2]
[328375319,1717282243289,-500.0,0.00021917,2]
[328375320,1717282243298,-900.6,0.00021917,2]
[328375321,1717282243307,-500.0,0.00021917,2]
[328375323,1717282243316,-2137.19,0.00021917,2]
[328375324,1717282243325,-527.80063417,0.00021917,2]
[328375326,1717282243335,-1243.31,0.00021917,2]
[328375328,1717282243344,-790.71,0.00021917,2]
[328375330,1717282243353,-500.0,0.00021917,2]
[328375332,1717282243363,-587.47071469,0.00021917,2]
[328375336,1717282243835,-0.00123253,0.00021917,2]
[328375340,1717282246677,-64.75805278,0.00021917,2]
[328375342,1717282246687,-500.0,0.00021917,2]
[328375343,1717282246696,-500.0,0.00021917,2]
[328375344,1717282246705,-500.0,0.00021917,2]
[328375345,1717282246714,-96.89900901,0.00021917,2]
[328375346,1717282246924,-477.56099099,0.00021917,2]
[328375348,1717282246934,-500.0,0.00021917,2]
[328375349,1717282246943,-824.24,0.00021917,2]
[328375350,1717282246952,-712.37,0.00021917,2]
[328375351,1717282246962,-500.0,0.00021917,2]
[328375352,1717282246971,-500.0,0.00021917,2]
[328375353,1717282246980,-590.01,0.00021917,2]
[328375354,1717282246990,-672.65,0.00021917,2]
[328375355,1717282246999,-500.0,0.00021917,2]
[328375356,1717282247008,-500.0,0.00021917,2]
[328375357,1717282247017,-1166.88,0.00021917,2]
[328375358,1717282247027,-256.89950487,0.00021917,2]
[328375383,1717283167702,372.03366968,9.999e-05,2]
[328375404,1717283431802,-1042.65432045,0.000189,2]
[328375405,1717283431812,-168.050635,0.00020454,2]
[328375406,1717283431960,-239.201585,0.00020563,2]
[328375407,1717283431970,-4230.52943513,0.00021756,2]
[328375408,1717283431979,-150.0,0.000218,2]
[328375409,1717283431989,-4.24475934,0.00021915,2]
[328375410,1717283432001,-270.83472393,0.00021915,2]
[328375411,1717283432011,-162.78996957,0.00021915,2]
[328375412,1717283432020,-281.85841065,0.00021915,2]
[328375413,1717283432029,-312.65893706,0.00021915,2]
[328375414,1717283432038,-944.04169807,0.00021915,2]
[328375415,1717283432048,-230.89467572,0.00021915,2]
[328375416,1717283432058,-1362.4666193,0.00021915,2]
[328375417,1717283432067,-523.01612629,0.00021915,2]
[328375418,1717283432076,-276.58092727,0.00021915,2]
[328375419,1717283432086,-157.37250312,0.00021915,2]
[328375420,1717283432096,-1183.59203928,0.00021915,2]
[328375421,1717283432105,-154.98450155,0.00021915,2]
[328375422,1717283432117,-309.86056352,0.00021915,2]
[328375423,1717283432127,-2119.09684866,0.00021915,2]
[328375424,1717283432136,-1847.61310577,0.00021915,2]
[328375425,1717283432145,-371.73127512,0.00021915,2]
[328375426,1717283432155,-2489.2632548,0.00021915,2]
[328375427,1717283432164,-1709.10425204,0.00021915,2]
[328375428,1717283432174,-2070.16185834,0.00021915,2]
[328375429,1717283432183,-155.43246945,0.00021916,2]
[328375430,1717283432193,-294.26426965,0.00021916,2]
[328375431,1717283432203,-5433.44648687,0.00021916,2]
[328375490,1717283443040,-897.38565272,0.00018899,2]
[328375491,1717283443049,-102.61434728,0.00021916,2]
[328375492,1717283443061,-4034.6851755,0.00021916,2]
[328375493,1717283443070,-500.0,0.00021916,2]
[328375494,1717283443080,-500.0,0.00021916,2]
[328375495,1717283443089,-268.66405227,0.00021916,2]
[328375496,1717283443098,-353.95153519,0.00021916,2]
[328375497,1717283443108,-490.06767059,0.00021916,2]
[328375498,1717283443117,-500.0,0.00021916,2]
[328375499,1717283443126,-450.0,0.00021916,2]
[328375500,1717283443135,-500.0,0.00021916,2]
[328375501,1717283443145,-468.73123274,0.00021916,2]
[328375502,1717283443154,-500.0,0.00021916,2]
[328375503,1717283443163,-500.0,0.00021916,2]
[328375504,1717283443172,-230.25949522,0.00021916,2]
[328375505,1717283443182,-500.0,0.00021916,2]
[328375506,1717283443191,-500.0,0.00021916,2]
[328375507,1717283443200,-628.82877193,0.00021916,2]
[328375508,1717283443210,-352.8725145,0.00021916,2]
[328375509,1717283443219,-500.0,0.00021916,2]
[328375510,1717283443230,-500.0,0.00021916,2]
[328375511,1717283443239,-500.0,0.00021916,2]
[328375512,1717283443249,-500.0,0.00021916,2]
[328375513,1717283443259,-500.0,0.00021916,2]
[328375514,1717283443268,-321.99934303,0.00021916,2]
[328375515,1717283443278,-500.0,0.00021916,2]
[328375516,1717283443286,-264.18461195,0.00021916,2]
[328375517,1717283443295,-169.39611818,0.00021916,2]
[328375518,1717283443305,-500.0,0.00021916,2]
[328375519,1717283443314,-500.0,0.00021916,2]
[328375520,1717283443323,-1152.76182948,0.00021917,7]
[328375521,1717283443332,-3986.07672672,0.00021917,2]
[328375522,1717283443341,-224.86265423,0.00021917,2]
[328375523,1717283443350,-500.0,0.00021917,2]
[328375524,1717283443360,-500.0,0.00021917,2]
[328375525,1717283443369,-500.0,0.00021917,2]
[328375526,1717283443379,-504.1177901,0.00021917,2]
[328375527,1717283443388,-500.0,0.00021917,2]
[328375528,1717283443397,-874.72,0.00021917,2]
[328375529,1717283443406,-500.0,0.00021917,2]
[328375530,1717283443415,-577.03678029,0.00021917,2]
[328375531,1717283443425,-620.9,0.00021917,2]
[328375532,1717283443434,-598.92848207,0.00021917,2]
[328375533,1717283443443,-500.0,0.00021917,2]
[328375534,1717283443452,-482.41690018,0.00021917,2]
[328375535,1717283443462,-500.0,0.00021917,2]
[328375536,1717283443471,-500.0,0.00021917,2]
[328375537,1717283443480,-500.0,0.00021917,2]
[328375538,1717283443489,-500.0,0.00021917,2]
[328375539,1717283443499,-500.0,0.00021917,2]
[328375540,1717283443507,-550.53,0.00021917,2]
[328375541,1717283443517,-625.05,0.00021917,2]
[328375542,1717283443526,-682.69,0.00021917,2]
[328375543,1717283443535,-521.5334138,0.00021917,2]
[328375544,1717283443545,-500.0,0.00021917,2]
[328375545,1717283443554,-500.0,0.00021917,2]
[328375546,1717283443563,-161.89177578,0.00021917,2]
[328375547,1717283443571,-586.94041342,0.00021917,2]
[328375548,1717283443580,-500.0,0.00021917,2]
[328375549,1717283443589,-577.15,0.00021917,2]
[328375550,1717283443598,-500.0,0.00021917,2]
[328375551,1717283443608,-1304.58,0.00021917,2]
[328375552,1717283443617,-500.0,0.00021917,2]
[328375553,1717283443626,-538.86,0.00021917,2]
[328375554,1717283443636,-500.0,0.00021917,2]
[328375555,1717283443645,-500.0,0.00021917,2]
[328375556,1717283443654,-526.9502621,0.00021917,2]
[328375557,1717283443663,-250.0,0.00021917,2]
[328375558,1717283443672,-549.0167918,0.00021917,2]
[328375559,1717283443681,-154.92253873,0.00021917,2]
[328375560,1717283443691,-500.0,0.00021917,2]
[328375561,1717283443700,-500.0,0.00021917,2]
[328375562,1717283443709,-500.0,0.00021917,2]
[328375563,1717283443718,-500.0,0.00021917,2]
[328375564,1717283443727,-500.0,0.00021917,2]
[328375565,1717283443736,-624.49,0.00021917,2]
[328375566,1717283443746,-740.41,0.00021917,2]
[328375567,1717283443755,-500.0,0.00021917,2]
[328375568,1717283443765,-500.0,0.00021917,2]
[328375569,1717283443774,-500.0,0.00021917,2]
[328375570,1717283443784,-440.58807688,0.00021917,2]
[328375571,1717283443793,-500.0,0.00021917,2]
[328375572,1717283443802,-500.0,0.00021917,2]
[328375573,1717283443811,-500.0,0.00021917,2]
[328375574,1717283443820,-500.0,0.00021917,2]
[328375575,1717283443829,-500.0,0.00021917,2]
[328375576,1717283443838,-528.45,0.00021917,2]
[328375577,1717283443848,-500.0,0.00021917,2]
[328375578,1717283443857,-500.0,0.00021917,2]
[328375579,1717283443866,-805.45,0.00021917,2]
[328375580,1717283443876,-500.0,0.00021917,2]
[328375581,1717283443885,-500.0,0.00021917,2]
[328375582,1717283443894,-633.35,0.00021917,2]
[328375583,1717283443903,-500.0,0.00021917,2]
[328375584,1717283443914,-500.0,0.00021917,2]
[328375585,1717283443926,-529.92663281,0.00021917,2]